Cogmind - Beta 13 @@@ ROGUE MODE // 2024.04.29 @ 16:37:55 Player: ferbs Result: Destroyed by Y-54 Guardian with Gatling Laser Performance ------------- Evolutions (3) 1500 Regions Visited (5) 1000 Robots Destroyed (62) 310 Value Destroyed (2198) 2198 Prototype IDs (6) 120 Alien Tech Used (0) 0 Bonus (65) 65 TOTAL SCORE: 5193 Bonus ------- High Alert Combat Kills 65 Cogmind --------- Core Integrity 0/700 Matter 262/300 Energy 100/100 System Corruption 4% Temperature Cool (6) Movement Core (100) Ox1 Location -7/Factory Parts ------- > --- POWER (2) -------- (None) > --- PROPULSION (4) --- (None) > --- UTILITY (5) ------ (None) > --- WEAPON (2) ------- Flak Gun > --- INVENTORY (5) ---- Transmission Jammer Improved EM Pulse Cannon Peak State ------------ > --- POWER ------------ Heavy Ion Engine Cooled Ion Engine > --- PROPULSION ------- Aluminum Leg Aluminum Leg Aluminum Leg Carbon-fiber Leg > --- UTILITY ---------- Advanced Heat Sink Small Storage Unit Improved Terrain Scanner Particle Charger Particle Charger > --- WEAPON ----------- Heavy Particle Gun Heavy Particle Gun > --- INVENTORY -------- Cooled Ion Engine Improved Deuterium Engine Improved Deuterium Engine Light Angular Momentum Engine Heavy Laser Heavy Particle Cannon Heavy Particle Cannon [Rating: 37] Favorites ----------- Power Cooled Ion Engine Engine Cooled Ion Engine Propulsion Aluminum Leg Leg Aluminum Leg Flight Unit Cesium-ion Thruster Utility Small Storage Unit Device Cooling System Storage Small Storage Unit Processor Signal Interpreter Weapon Beam Cannon Energy Gun Heavy Particle Gun Energy Cannon Beam Cannon Ballistic Gun Improved Assault Rifle Build | -11 -10 -9 -9 -8 -7 ------- Run | Yrd Mat Mat Min Mat Fac Slots Evolved 6 | . . 2 . 2 2 Power 1 | . . . . 1 . Propulsion 2 | . . 1 . 1 . Utility 3 | . . 1 . . 2 Weapon . | . . . . . . Parts Attached 63 | 6 2 19 1 20 15 Power 10 | 1 . 3 . 2 4 Engine 10 | 1 . 3 . 2 4 Core . | . . . . . . Reactor . | . . . . . . Propulsion 18 | 2 . 6 1 8 1 Treads . | . . . . . . Leg 17 | 2 . 6 1 8 . Wheel . | . . . . . . Hover . | . . . . . . Flight 1 | . . . . . 1 Utility 10 | 1 . 5 . 2 2 Device 8 | . . 4 . 2 2 Storage 1 | 1 . . . . . Processor 1 | . . 1 . . . Hackware . | . . . . . . Protection . | . . . . . . Artifact . | . . . . . . Weapon 25 | 2 2 5 . 8 8 Energy Gun 15 | 2 . 2 . 7 4 Energy Cannon 8 | . 2 3 . . 3 Ballistic Gun 2 | . . . . 1 1 Ballistic Cannon . | . . . . . . Launcher . | . . . . . . Special Weapon . | . . . . . . Impact Weapon . | . . . . . . Slashing Weapon . | . . . . . . Piercing Weapon . | . . . . . . Special Melee Weapon . | . . . . . . Unidentified Prototypes 6 | . . 2 . 4 . Parts Lost 33 | . . 3 1 7 22 Power 6 | . . 1 . . 5 Propulsion 11 | . . . 1 5 5 Utility 5 | . . . . . 5 Weapon 11 | . . 2 . 2 7 Highest Loss Streak 16 | . . 2 1 4 16 To Critical Strikes . | . . . . . . Average Slot Usage (%) 89 | . 85 96 92 96 66 Engine 13 | . 14 10 11 18 11 Leg 29 | . 28 33 26 32 19 Device 12 | . . 14 11 12 13 Storage 9 | . 14 11 11 9 5 Processor 4 | . . 5 11 5 . Energy Gun 10 | . 12 10 . 13 11 Energy Cannon 9 | . 15 10 22 3 1 Naked Turns 19 | . . . . . 19 Heaviest Build 35 | 11 14 23 21 31 35 Greatest Support 45 | 20 20 30 30 45 45 Greatest Overweight (x) 5 | . . . 1 1 5 Average Overweight (x) . | . . . . . . Largest Inventory Capacity 8 | 8 8 8 8 8 8 Average Capacity 7 | 6 8 8 8 8 7 Most Carried 8 | 8 8 8 8 8 8 Average Carried 7 | 4 7 7 7 6 6 Final Capacity 8 | 8 8 8 8 8 5 Final Carried 8 | 6 8 8 7 8 2 Class Distribution -------------------- 74% | Mutant 25% | Scavenger-Mutant Dominant Class ---------------- Mutant | -10/Materials Mutant | -9/Materials Mutant | -9/Mines Scavenger-Mutant | -8/Materials Scavenger-Mutant | -7/Factory Resources | -11 -10 -9 -9 -8 -7 ----------- Run | Yrd Mat Mat Min Mat Fac Matter Collected 782 | 204 76 170 25 201 106 Remotely . | . . . . . . Salvage Created 2602 | . 58 1061 77 868 538 Parts 123 | . 2 61 6 30 24 Haulers Intercepted 2 | . . 1 . 1 . Recyclers Shooed 2 | . . 2 . . . Parts Field Recycled . | . . . . . . Retrieved Matter . | . . . . . . Parts Self-Destructed . | . . . . . . Prevented . | . . . . . . Kills | -11 -10 -9 -9 -8 -7 ------- Run | Yrd Mat Mat Min Mat Fac Combat Hostiles Destroyed 50 | . 1 20 4 16 9 Guns 25 | . . 10 . 11 4 Cannons 20 | . 1 9 4 3 3 AOE 1 | . . 1 . . . Classes Destroyed 12 | . 2 6 1 2 1 Worker 4 | . . 2 1 . 1 Builder 4 | . . 2 . 1 1 Hauler 2 | . . 1 . 1 . Operator 1 | . 1 . . . . Watcher 1 | . . 1 . . . Swarmer 4 | . . . 4 . . Grunt 26 | . 1 14 . 10 1 Brawler 2 | . . 2 . . . Duelist 2 | . . . . 1 1 Sentry 13 | . . 4 . 3 6 Hunter 2 | . . . . 2 . Programmer 1 | . . . . . 1 Best Kill Streak 8 | . 1 8 5 7 4 Combat Bots Only 6 | . 1 6 4 6 4 Max Kills in Single Turn 3 | . 1 3 1 2 1 Gunslinging . | . . . . . . Exploded 1 | . . 1 . . . Melee . | . . . . . . Uniques/NPCs Destroyed . | . . . . . . Combat | -11 -10 -9 -9 -8 -7 -------- Run | Yrd Mat Mat Min Mat Fac Hostile Shots Fired 486 | . 3 55 9 96 323 Missed 184 | . . 19 1 37 127 Damage Taken 4209 | . 32 746 61 997 2373 Core 991 | . . 178 7 96 710 Absorbed by Shields . | . . . . . . Regen/Repaired (Parts) 36 | . . 36 . . . Core Remaining (%) 83 | 100 100 . 53 82 . Volleys Fired 161 | . 13 52 7 52 37 Largest 2 | . 2 2 2 2 2 Hottest 150 | . 120 120 120 120 150 Shots Fired 310 | . 26 104 14 104 62 Gun 178 | . 12 50 . 69 47 Cannon 132 | . 14 54 14 35 15 Launcher . | . . . . . . Special . | . . . . . . Kinetic 17 | . . . . 10 7 Thermal 240 | . 26 54 14 94 52 Explosive . | . . . . . . Electromagnetic 53 | . . 50 . . 3 Robot Hit Streak 22 | . 5 14 7 12 22 Robot Miss Streak 7 | . 7 3 2 5 3 Penetration Max . | . . . . . . Secondary Targets 2 | . . . . 2 . Max Gunslinging Chain 1 | . . . . 1 . Shots Hit Robots 205 | . 10 77 5 66 47 Core Hits 119 | . 3 44 5 32 35 Critical Kills 1 | . . . . 1 . Critical Parts Destroyed . | . . . . . . Critical Strikes 6 | . . . . 5 1 Burn 5 | . . . . 4 1 Meltdown 1 | . . . . 1 . Melee Attacks . | . . . . . . Impact . | . . . . . . Slashing . | . . . . . . Piercing . | . . . . . . Sneak Attacks . | . . . . . . Combat Hostiles . | . . . . . . Follow-up Attacks . | . . . . . . Damage Inflicted 4418 | . 173 1751 159 1258 1077 Guns 2484 | . 34 725 . 909 816 Cannons 1469 | . 139 664 159 346 161 Explosions 462 | . . 362 . . 100 Melee . | . . . . . . Ramming 3 | . . . . 3 . Kinetic 253 | . . . . 150 103 Thermal 3071 | . 173 771 159 1105 863 Explosive 355 | . . 255 . . 100 Electromagnetic 736 | . . 725 . . 11 Impact . | . . . . . . Slashing . | . . . . . . Piercing . | . . . . . . Highest Corruption 4 | . . . . . 4 Average Corruption 3 | . . . . . 3 Corruption Purged . | . . . . . . Corruption Blocked . | . . . . . . Effects 1 | . . . . . 1 Matter Fused 1 | . . . . . 1 Overload Shots . | . . . . . . Overflow Damage 85 | . . 55 . . 30 Projectiles 21 | . . 21 . . . Explosions 64 | . . 34 . . 30 Melee . | . . . . . . Knockbacks . | . . . . . . Impact . | . . . . . . Kinetic . | . . . . . . Secondary . | . . . . . . Self-Inflicted Damage 378 | . . 277 . . 101 Shots 5 | . . 4 . . 1 Rammed . | . . . . . . Targets Rammed 1 | . . . . 1 . Kicked 1 | . . . . 1 . Crushed . | . . . . . . Highest Temperature 566 | . 180 95 . 159 566 Average Temperature 81 | . 57 44 . 21 137 Received Heat Transfer 1404 | . 18 204 . 486 696 Effects 5 | . . . . . 5 Shutdowns 2 | . . . . . 2 Interference 2 | . . . . . 2 Damage (core) 1 | . . . . . 1 Siege Activations . | . . . . . . Robots Corrupted . | . . . . . . Combat Hostiles . | . . . . . . Parts Fried 3 | . . 3 . . . Impact Corruptions . | . . . . . . Robots Melted 4 | . . . . 2 2 Combat Hostiles 4 | . . . . 2 2 Parts Melted 18 | . . 1 . 11 6 Heat Transferred 6609 | . 395 1606 333 2553 1722 Parts Sabotaged . | . . . . . . Parts Stolen . | . . . . . . Parts Stripped . | . . . . . . Power Chain Reactions 2 | . . 2 . . . Alert | -11 -10 -9 -9 -8 -7 ------- Run | Yrd Mat Mat Min Mat Fac Peak Influence 536 | . 59 536 260 449 336 Initial 175 | . . 24 175 101 133 Average 203 | . 23 207 248 256 224 Maximum Alert Level 2 | . . 2 1 2 1 Low Security (%) 44 | 100 100 58 12 21 28 Level 1 49 | . . 30 87 70 71 Level 2 6 | . . 11 . 8 . Level 3 . | . . . . . . Level 4 . | . . . . . . Level 5 . | . . . . . . High Security . | . . . . . . Max Security . | . . . . . . Squads Dispatched 13 | . 1 3 . 4 5 Investigation 3 | . . 2 . 1 . Extermination 1 | . . . . . 1 Reinforcement 5 | . 1 1 . 3 . Assault . | . . . . . . Garrison 4 | . . . . . 4 Intercept . | . . . . . . Searches Triggered . | . . . . . . Construction Impeded . | . . . . . . Haulers Reinforced . | . . . . . . Active Scanning Responses . | . . . . . . Cargo Convoy Interrupts . | . . . . . . Stealth | -11 -10 -9 -9 -8 -7 --------- Run | Yrd Mat Mat Min Mat Fac Distress Signals 5 | . 1 3 . 1 . Communications Jammed . | . . . . . . Distress Signals . | . . . . . . Times Spotted 67 | . 7 25 4 17 14 Peak Tracking Total 6 | . 4 5 4 5 6 Tactical Retreats 1 | . . . . . 1 Traps | -11 -10 -9 -9 -8 -7 ------- Run | Yrd Mat Mat Min Mat Fac Traps Triggered 2 | . . 2 . . . Indirectly . | . . . . . . Trap Hack Attempts . | . . . . . . Triggered . | . . . . . . Disarmed . | . . . . . . Reprogrammed . | . . . . . . Reused . | . . . . . . Traps Extracted . | . . . . . . Installed . | . . . . . . Triggered . | . . . . . . Machines | -11 -10 -9 -9 -8 -7 ---------- Run | Yrd Mat Mat Min Mat Fac Machines Disabled 9 | . . 6 . 1 2 Max in Single Turn 5 | . . 5 . 1 1 Machines Repaired . | . . . . . . Machines Dismantled . | . . . . . . Machines Sabotaged . | . . . . . . Overloaded Fab Kills . | . . . . . . Hacking | -11 -10 -9 -9 -8 -7 --------- Run | Yrd Mat Mat Min Mat Fac Machines Accessed 7 | . 1 3 . 3 . Terminals 5 | . 1 2 . 2 . Fabricators . | . . . . . . Repair Stations 1 | . . 1 . . . Recycling Units . | . . . . . . Scanalyzers 1 | . . . . 1 . Garrison Access . | . . . . . . Total Hacks 20 | . 3 8 . 9 . Successful 8 | . 2 3 . 3 . Failed 12 | . 1 5 . 6 . Catastrophic 1 | . . . . 1 . Database Lockouts . | . . . . . . Manual . | . . . . . . Terminals 15 | . 3 6 . 6 . Fabricators . | . . . . . . Repair Stations 2 | . . 2 . . . Recycling Units . | . . . . . . Scanalyzers 3 | . . . . 3 . Garrison Access . | . . . . . . Terminal Hacks 4 | . 2 1 . 1 . Record 3 | . 1 1 . 1 . Branch Access Points 1 | . 1 . . . . Fabricator Hacks . | . . . . . . Repair Station Hacks 2 | . . 2 . . . Scan Component 1 | . . 1 . . . Repair 1 | . . 1 . . . Recycling Unit Hacks . | . . . . . . Scanalyzer 2 | . . . . 2 . Insert Component 1 | . . . . 1 . Analyze 1 | . . . . 1 . Garrison Access Hacks . | . . . . . . Unauthorized Hacks . | . . . . . . Terminals . | . . . . . . Fabricators . | . . . . . . Repair Stations . | . . . . . . Recycling Units . | . . . . . . Scanalyzers . | . . . . . . Garrison Access . | . . . . . . Data Cores Recovered 1 | . 1 . . . . Used . | . . . . . . Hacking Detections 6 | . 1 2 . 3 . Full Trace Events 2 | . . 1 . 1 . Feedback Events . | . . . . . . Feedback Blocked . | . . . . . . Robot Schematics Acquired . | . . . . . . Robots Built . | . . . . . . Authchips . | . . . . . . Time . | . . . . . . Total Robot Build Rating . | . . . . . . Part Schematics Acquired 1 | . . . . 1 . Parts Built . | . . . . . . Authchips . | . . . . . . Time . | . . . . . . Total Part Build Rating . | . . . . . . Parts Repaired 1 | . . 1 . . . Time 26 | . . 26 . . . Parts Recycled . | . . . . . . Recycled Matter . | . . . . . . Retrieved Matter . | . . . . . . Retrieved Components . | . . . . . . Parts Scanalyzed 1 | . . . . 1 . Part Schematics Acquired 1 | . . . . 1 . Parts Damaged . | . . . . . . Bothacking | -11 -10 -9 -9 -8 -7 ------------ Run | Yrd Mat Mat Min Mat Fac Used RIF Installer . | . . . . . . Robots Hacked . | . . . . . . Non-combat . | . . . . . . Combat . | . . . . . . Robot Hacks Applied . | . . . . . . Relay Couplers Released . | . . . . . . Fabnet Peak Effective % . | . . . . . . Robots Rewired . | . . . . . . Allies Hacked . | . . . . . . Hacks Repelled . | . . . . . . Allies | -11 -10 -9 -9 -8 -7 -------- Run | Yrd Mat Mat Min Mat Fac Total Allies . | . . . . . . Largest Group . | . . . . . . Highest-Rated Group . | . . . . . . Highest-Rated Ally . | . . . . . . Total Orders . | . . . . . . Ally Attacks . | . . . . . . Total Damage . | . . . . . . Kills . | . . . . . . Allies Corrupted . | . . . . . . Allies Melted . | . . . . . . Intel | -11 -10 -9 -9 -8 -7 ------- Run | Yrd Mat Mat Min Mat Fac Robot Analysis Total . | . . . . . . Derelict Logs Recovered . | . . . . . . Drone Launches . | . . . . . . Drone Recoveries . | . . . . . . Exploration | -11 -10 -9 -9 -8 -7 ------------- Run | Yrd Mat Mat Min Mat Fac Turns Passed 2477 | 78 234 866 269 630 400 Spaces Moved 1518 | 57 154 526 160 345 276 Core 50 | 12 . . . . 38 Treads . | . . . . . . Legs 1419 | 45 154 526 160 345 189 Wheels . | . . . . . . Hover . | . . . . . . Flight 49 | . . . . . 49 Fastest Speed 35 | 50 120 120 120 120 35 Average Speed 120 | 105 120 120 155 122 100 Slowest Speed 300 | 120 120 120 190 190 300 Overloaded Moves . | . . . . . . Propulsion Burnouts . | . . . . . . Robots Hopped 2 | . . . . . 2 Cave-ins Triggered . | . . . . . . Exploration Rate (%) 21 | 3 28 33 26 31 8 Regions Visited 5 Branch Regions 1 Pre-discovered Areas . | . . . . . . Known Exits Taken 2 | . . 1 1 . . Unknown Exits Taken 3 | 1 1 . . 1 . Scrap Searched . | . . . . . . Spaces Dug . | . . . . . . Terrain Destroyed 93 | . . 48 . 1 44 Melee . | . . . . . . Projectile 1 | . . . . 1 . AOE 92 | . . 48 . . 44 Terrain Rammed . | . . . . . . Walls Destroyed . | . . . . . . Machines Disabled . | . . . . . . Actions | -11 -10 -9 -9 -8 -7 --------- Run | Yrd Mat Mat Min Mat Fac Total 1861 | 74 178 660 167 448 334 Wait 32 | 2 . 29 . 1 . Move 1509 | 56 153 525 159 344 272 Hop 2 | . . . . . 2 Pick Up 58 | 10 6 17 . 18 7 Fast Attach 10 | 2 . 6 . 2 . Attach 33 | 4 . 6 1 8 14 Detach 1 | . . . . . 1 Swap 20 | . 2 7 . 10 1 Drop 34 | . 4 18 . 12 . Fire 161 | . 13 52 7 52 37 Melee . | . . . . . . Ram . | . . . . . . Kick 1 | . . . . 1 . Crush . | . . . . . . Escape Stasis . | . . . . . . Rewire . | . . . . . . Trap . | . . . . . . Miscellaneous . | . . . . . . Route ------- -11/Scrapyard -10/Materials (discovered 3 exits: *Mat / Min x2) -9/Materials -9/Mines -8/Materials -7/Factory History --------- Turn | Location | Event 7 | -11/Scrapyard | Discovered new exit (range 14) 79 | -11/Scrapyard | Entered Materials 171 | -10/Materials | Discovered new exit (range 11) 189 | -10/Materials | Identified exit to Mines 300 | -10/Materials | Build established: Mutant 313 | -10/Materials | Entered another Materials area 313 | -9/Materials | Evolved 2 slots: Propulsion x1, Utility x1 589 | -9/Materials | Repaired Beam Cannon 1125 | -9/Materials | Discovered new exit (range 7) 1149 | -9/Materials | Identified exit to Mines 1179 | -9/Materials | Entered Mines 1191 | -9/Mines | Met a Derelict bent on vengeance 1205 | -9/Mines | Discovered new exit (range 6) 1236 | -9/Mines | Identified exit to Materials 1448 | -9/Mines | Entered Materials 1448 | -8/Materials | Evolved 2 slots: Power x1, Propulsion x1 1603 | -8/Materials | Lost 4 parts (2n2w) 2067 | -8/Materials | Discovered new exit (range 4) 2073 | -8/Materials | Build established: Scavenger-Mutant 2078 | -8/Materials | Entered Factory 2078 | -7/Factory | Evolved 2 slots: Utility x2 2179 | -7/Factory | Lost 3 parts (2u1w) 2398 | -7/Factory | Core integrity fell below 50% 2439 | -7/Factory | Lost 16 parts (4p3n3u6w) 2442 | -7/Factory | Core integrity fell below 20% 2466 | -7/Factory | Garrison activated, responded to threat 2478 | -7/Factory | Destroyed by Y-54 Guardian with Gatling Laser Last Messages --------------- R-06 Scavenger collects Wheel. K-01 Serf collects debris. U-05 Engineer lays Concrete. Imp. Deuterium Engine destroyed. U-05 Engineer builds a Wall. R-06 Scavenger collects Terrain Scanner. K-01 Serf collects debris. Acquired Flak Gun. K-01 Serf cleans the Power Conduit. P-60 Hacker calls for garrison reinforcements. ALERT: Activating Garrison Access F002. P-60 Hacker destroyed. K-01 Serf collects debris. Acquired 27 matter. K-01 Serf collects debris. Cesium-ion Thruster destroyed. K-01 Serf destroyed. Acquired 9 matter. K-01 Serf collects debris. R-06 Scavenger collects Wheel. Map ----- +----------------------------------------------------+ | ??????????""""" ?????????????????????????????????? | | ???????????? ????????????????????????????????? | | ?????????????? ##?###?????????????????????????? | | ???????????????? # ## ###???????????????????????? | | ????????????????## #???????????????????????? | | ???????????????## ##??????????????????????? | | ???????????????# #??????????????????????? | | ??????#?###????# #??????????????????????? | | ??????""T"""???# #??????????????????????? | | ?????""" """##### #??????????????????????? | | ?????? # #??????????????????????? | | ?????? ##??????????????????????? | | ?????""""""""" ## ## ##########??????????????? | | % #???????????? | | ?????""""""""" #####+#####+#######??????????????? | | # #???????????????????? | | ?????""""""""" # " " " " " #???????????????????? | | # " " "r" " #???????????????????? | | ?????""""""""" # " "g" " " #???????????????????? | | # " " " " " #???????????????????? | | ?????""""""""" # " " " " " #???????????????????? | | # " " " " " #???????????????????? | | ?????""""""""" # " " " " " #???????????????????? | | # " " "*" " #?#?????????????????? | | ?????""""""""" # " "r"g" " #???????????????????? | | # Y!@ #?????????"?????????? | | ??? """"""""" # k #???????????????????? | | ####+#########?? ????????????????? | | ?????""""""""" #???????????????????????? | | ?? #???????????????????????? | | ??? """"""""" #???????????????????????? | | ???? ##############??????????? | | ?????""""""""" # #??????????? | | ????? # """"" #??????????? | | ???? # ""R"" #??????????? | | ????? ### # " " #??????????? | | ????????# # " #?"????????? | | ????????# """ %+% "" #??????????? | | ????????# """ """ "G" # "" #??????????? | | ????????# """ """ " " + " " #??????????? | | ????????# """ """ # """ #??????????? | | ????????# """ """ # #??????????? | | ????????# # #??????????? | | ????????# # #??????????? | | ????????# #########+#################??????????? | | ???????????????# #????#???????????????? | | ???????????????# #????????#??????? ???? | | ???????????????# #????????????????????? | | ???????????????# #???#????????????????? | | ???????????????# """" """" #???#????#???????????? | +----------------------------------------------------+ Best States ------------- Heat Dissipation 72 Energy Generation 23 Energy Capacity 460 Matter Stores 300 Matter Capacity 300 Sight Range 16 Terrain Scan Range 16 Terrain Scan Density 10 Evasion (%) 63 Particle Charging 22 Item Schematics ----------------- Beam Rifle | -8/Materials | Scanalyzed Robot Schematics ------------------ None Fabricated ------------ Nothing Alien Tech Used ----------------- None Achievements -------------- None Challenges ------------ None Game ------ Seed AluminumGyrokineticMeganuke Manual? 0 Play Time 00:37:26 Cumulative 7.2 hours Start 2024.04.29 @ 15:53:38 End 2024.04.29 @ 16:37:55 Sessions 1 Manual Loads 0 Difficulty Rogue Special Mode None Game No. 11 Rogue 11 Adventurer 0 Explorer 0 Win Type - Total 0 Types 0/0/0/0/0/0/0/0/0 Lore% 2 Gallery% 16 Achievement% 12 Wizard Run 0 Options --------- Layout 1 ASCII 0 Keyboard 0 Movement Mouse Keybinds 0 Fullscreen 2 Font 32/SmallcapsGlow Map View 50x35 Zoom Use 0% Tactical HUD 0 Map Filters NONE Filters NONE Steam 1 RUN: 7567b2af-d593-4431-b4c9-8c07e0a19204